Cogmind - Beta 13 @@@ ROGUE MODE // 2024.04.28 @ 23:21:58 Player: Jason Result: Destroyed self with Rocket Launcher Performance ------------- Evolutions (0) 0 Regions Visited (3) 600 Robots Destroyed (25) 125 Value Destroyed (561) 561 Prototype IDs (3) 60 Alien Tech Used (0) 0 Bonus (0) 0 TOTAL SCORE: 1346 Bonus ------- None Cogmind --------- Core Integrity 0/250 Matter 288/300 Energy 100/100 System Corruption 0% Temperature Cool (9) Movement Walking (120) Location -10/Subcaves Parts ------- > --- POWER (1) -------- (None) > --- PROPULSION (2) --- Aluminum Leg > --- UTILITY (2) ------ (None) > --- WEAPON (2) ------- Rocket Launcher > --- INVENTORY (5) ---- Ion Engine Aluminum Leg High-capacity Matter Pod (200) Grenade Launcher Peak State ------------ > --- POWER ------------ Ion Engine > --- PROPULSION ------- Aluminum Leg Aluminum Leg > --- UTILITY ---------- Scrap Shield > --- WEAPON ----------- Small Laser Assault Rifle > --- INVENTORY -------- Ion Engine Aluminum Leg Aluminum Leg Structural Scanner ECM Suite [Rating: 9] Favorites ----------- Power Ion Engine Engine Ion Engine Propulsion Aluminum Leg Leg Aluminum Leg Utility Sensor Array Device Sensor Array Storage Medium Storage Unit Protection Scrap Shield Weapon Small Laser Energy Gun Small Laser Ballistic Gun Assault Rifle Launcher Rocket Launcher Build | -11 -10 -10 -10 ------- Run | Yrd Mat Min Sub Slots Evolved . | . . . . Power . | . . . . Propulsion . | . . . . Utility . | . . . . Weapon . | . . . . Parts Attached 23 | 8 13 . 2 Power 4 | 2 2 . . Engine 4 | 2 2 . . Core . | . . . . Reactor . | . . . . Propulsion 6 | 2 4 . . Treads . | . . . . Leg 6 | 2 4 . . Wheel . | . . . . Hover . | . . . . Flight . | . . . . Utility 6 | 1 4 . 1 Device 2 | . 2 . . Storage 3 | 1 2 . . Processor . | . . . . Hackware . | . . . . Protection 1 | . . . 1 Artifact . | . . . . Weapon 7 | 3 3 . 1 Energy Gun 3 | 2 1 . . Energy Cannon . | . . . . Ballistic Gun 3 | 1 2 . . Ballistic Cannon . | . . . . Launcher 1 | . . . 1 Special Weapon . | . . . . Impact Weapon . | . . . . Slashing Weapon . | . . . . Piercing Weapon . | . . . . Special Melee Weapon . | . . . . Unidentified Prototypes . | . . . . Parts Lost 8 | . 3 . 5 Power 2 | . 1 . 1 Propulsion 1 | . . . 1 Utility 1 | . . . 1 Weapon 4 | . 2 . 2 Highest Loss Streak 5 | . 2 . 5 To Critical Strikes . | . . . . Average Slot Usage (%) 97 | . 96 100 82 Engine 13 | . 13 14 12 Leg 27 | . 28 28 27 Device 12 | . 11 14 1 Storage 13 | . 14 14 1 Energy Gun 13 | . 13 14 12 Ballistic Gun 13 | . 13 14 14 Naked Turns . | . . . . Heaviest Build 29 | 14 29 19 26 Greatest Support 20 | 20 20 20 20 Greatest Overweight (x) 1 | 1 1 . 1 Average Overweight (x) . | . . . . Largest Inventory Capacity 15 | 8 15 10 10 Average Capacity 9 | 7 9 10 5 Most Carried 10 | 6 10 10 10 Average Carried 9 | 3 9 9 5 Final Capacity 10 | 8 10 10 5 Final Carried 10 | 6 10 10 4 Class Distribution -------------------- 73% | Scavenger-Mutant 26% | Mutant Dominant Class ---------------- Scavenger-Mutant | -10/Materials Scavenger-Mutant | -10/Mines Mutant | -10/Subcaves Resources | -11 -10 -10 -10 ----------- Run | Yrd Mat Min Sub Matter Collected 782 | 251 509 12 10 Remotely . | . . . . Salvage Created 755 | . 637 45 73 Parts 49 | . 41 2 6 Haulers Intercepted 1 | . 1 . . Recyclers Shooed 1 | . 1 . . Parts Field Recycled . | . . . . Retrieved Matter . | . . . . Parts Self-Destructed 6 | . . . 6 Prevented . | . . . . Kills | -11 -10 -10 -10 ------- Run | Yrd Mat Min Sub Combat Hostiles Destroyed 21 | . 16 3 2 Guns 18 | . 15 3 . AOE 3 | . 1 . 2 Classes Destroyed 6 | . 5 . 1 Builder 2 | . 2 . . Hauler 1 | . 1 . . Watcher 1 | . 1 . . Swarmer 9 | . 6 3 . Grunt 10 | . 10 . . Subdweller 2 | . . . 2 Best Kill Streak 4 | . 4 3 2 Combat Bots Only 3 | . 3 3 2 Max Kills in Single Turn 2 | . 1 1 2 Gunslinging . | . . . . Exploded 2 | . 1 . 2 Melee . | . . . . Uniques/NPCs Destroyed . | . . . . Combat | -11 -10 -10 -10 -------- Run | Yrd Mat Min Sub Hostile Shots Fired 137 | . 95 10 32 Missed 45 | . 32 3 10 Damage Taken 1344 | . 735 54 555 Core 255 | . 141 6 108 Absorbed by Shields . | . . . . Regen/Repaired (Parts) 82 | . 82 . . Core Remaining (%) 100 | 100 . . . Volleys Fired 74 | . 67 4 3 Largest 2 | . 2 2 1 Hottest 60 | . 60 60 33 Shots Fired 142 | . 131 8 3 Gun 141 | . 131 8 2 Cannon . | . . . . Launcher 1 | . . . 1 Special . | . . . . Kinetic 73 | . 67 4 2 Thermal 42 | . 38 4 . Explosive 1 | . . . 1 Electromagnetic 26 | . 26 . . Robot Hit Streak 10 | . 10 6 8 Robot Miss Streak 4 | . 4 1 . Penetration Max . | . . . . Secondary Targets 2 | . 2 . . Max Gunslinging Chain 1 | . 1 . . Shots Hit Robots 90 | . 81 7 2 Core Hits 37 | . 31 3 3 Critical Kills . | . . . . Critical Parts Destroyed 1 | . 1 . . Critical Strikes 1 | . 1 . . Destroy 1 | . 1 . . Melee Attacks . | . . . . Impact . | . . . . Slashing . | . . . . Piercing . | . . . . Sneak Attacks . | . . . . Combat Hostiles . | . . . . Follow-up Attacks . | . . . . Damage Inflicted 1368 | . 1052 97 219 Guns 1100 | . 979 97 24 Cannons . | . . . . Explosions 266 | . 71 . 195 Melee . | . . . . Ramming 2 | . 2 . . Kinetic 559 | . 483 52 24 Thermal 377 | . 332 45 . Explosive 195 | . . . 195 Electromagnetic 235 | . 235 . . Impact . | . . . . Slashing . | . . . . Piercing . | . . . . Highest Corruption . | . . . . Average Corruption . | . . . . Corruption Purged . | . . . . Corruption Blocked . | . . . . Overload Shots . | . . . . Overflow Damage . | . . . . Projectiles . | . . . . Explosions . | . . . . Melee . | . . . . Knockbacks . | . . . . Impact . | . . . . Kinetic . | . . . . Secondary . | . . . . Self-Inflicted Damage 30 | . . . 30 Shots 1 | . . . 1 Rammed . | . . . . Targets Rammed 1 | . 1 . . Kicked 1 | . 1 . . Crushed . | . . . . Highest Temperature 229 | . 139 . 229 Average Temperature 45 | . 41 . 128 Received Heat Transfer 718 | . 387 . 331 Siege Activations . | . . . . Robots Corrupted . | . . . . Combat Hostiles . | . . . . Parts Fried . | . . . . Impact Corruptions . | . . . . Robots Melted . | . . . . Combat Hostiles . | . . . . Parts Melted 2 | . 1 1 . Heat Transferred 750 | . 650 100 . Parts Sabotaged . | . . . . Parts Stolen . | . . . . Parts Stripped . | . . . . Power Chain Reactions 1 | . 1 . . Alert | -11 -10 -10 -10 ------- Run | Yrd Mat Min Sub Peak Influence 293 | . 293 110 . Initial 40 | . . 40 . Average 65 | . 101 29 . Maximum Alert Level 1 | . 1 . . Low Security (%) 95 | 100 91 100 . Level 1 4 | . 8 . . Level 2 . | . . . . Level 3 . | . . . . Level 4 . | . . . . Level 5 . | . . . . High Security . | . . . . Max Security . | . . . . Squads Dispatched 4 | . 4 . . Investigation 2 | . 2 . . Extermination . | . . . . Reinforcement 2 | . 2 . . Assault . | . . . . Garrison . | . . . . Intercept . | . . . . Searches Triggered . | . . . . Construction Impeded . | . . . . Haulers Reinforced . | . . . . Active Scanning Responses . | . . . . Cargo Convoy Interrupts . | . . . . Stealth | -11 -10 -10 -10 --------- Run | Yrd Mat Min Sub Distress Signals 1 | . 1 . . Communications Jammed . | . . . . Distress Signals . | . . . . Times Spotted 42 | . 25 3 14 Peak Tracking Total 14 | . 4 3 14 Tactical Retreats 1 | . 1 . . Traps | -11 -10 -10 -10 ------- Run | Yrd Mat Min Sub Traps Triggered 1 | . 1 . . Indirectly . | . . . . Trap Hack Attempts . | . . . . Triggered . | . . . . Disarmed . | . . . . Reprogrammed . | . . . . Reused . | . . . . Traps Extracted . | . . . . Installed . | . . . . Triggered . | . . . . Machines | -11 -10 -10 -10 ---------- Run | Yrd Mat Min Sub Machines Disabled 1 | . 1 . . Max in Single Turn 1 | . 1 . . Machines Repaired . | . . . . Machines Dismantled . | . . . . Machines Sabotaged . | . . . . Overloaded Fab Kills . | . . . . Hacking | -11 -10 -10 -10 --------- Run | Yrd Mat Min Sub Machines Accessed 11 | . 8 2 1 Terminals 8 | . 6 2 . Fabricators . | . . . . Repair Stations 1 | . 1 . . Recycling Units 1 | . 1 . . Scanalyzers . | . . . . Garrison Access . | . . . . Total Hacks 34 | . 27 5 2 Successful 20 | . 17 1 2 Failed 14 | . 10 4 . Catastrophic 4 | . 1 3 . Database Lockouts . | . . . . Manual 9 | . 4 5 . Terminals 21 | . 16 5 . Fabricators . | . . . . Repair Stations 7 | . 7 . . Recycling Units 4 | . 4 . . Scanalyzers . | . . . . Garrison Access . | . . . . Terminal Hacks 11 | . 8 1 2 Record 2 | . . . 2 Prototype ID Bank 2 | . 2 . . Branch Access Points 1 | . . 1 . Scanalyzer Index 1 | . 1 . . Alert Level 2 | . 2 . . Locate Traps 1 | . 1 . . Zone Layout 2 | . 2 . . Fabricator Hacks . | . . . . Repair Station Hacks 6 | . 6 . . Scan Component 3 | . 3 . . Repair 3 | . 3 . . Recycling Unit Hacks 2 | . 2 . . Report Inventory 1 | . 1 . . Retrieve Matter 1 | . 1 . . Scanalyzer . | . . . . Garrison Access Hacks . | . . . . Unauthorized Hacks 1 | . 1 . . Terminals 1 | . 1 . . Botnet 1 | . 1 . . Fabricators . | . . . . Repair Stations . | . . . . Recycling Units . | . . . . Scanalyzers . | . . . . Garrison Access . | . . . . Data Cores Recovered . | . . . . Used . | . . . . Hacking Detections 10 | . 8 2 . Full Trace Events 4 | . 4 . . Feedback Events . | . . . . Feedback Blocked . | . . . . Robot Schematics Acquired . | . . . . Robots Built . | . . . . Authchips . | . . . . Time . | . . . . Total Robot Build Rating . | . . . . Part Schematics Acquired . | . . . . Parts Built . | . . . . Authchips . | . . . . Time . | . . . . Total Part Build Rating . | . . . . Parts Repaired 3 | . 3 . . Time 78 | . 78 . . Parts Recycled . | . . . . Recycled Matter . | . . . . Retrieved Matter 398 | . 398 . . Retrieved Components . | . . . . Parts Scanalyzed . | . . . . Part Schematics Acquired . | . . . . Parts Damaged . | . . . . Bothacking | -11 -10 -10 -10 ------------ Run | Yrd Mat Min Sub Used RIF Installer . | . . . . Robots Hacked . | . . . . Non-combat . | . . . . Combat . | . . . . Robot Hacks Applied . | . . . . Relay Couplers Released . | . . . . Fabnet Peak Effective % . | . . . . Robots Rewired . | . . . . Allies Hacked . | . . . . Hacks Repelled . | . . . . Allies | -11 -10 -10 -10 -------- Run | Yrd Mat Min Sub Total Allies . | . . . . Largest Group . | . . . . Highest-Rated Group . | . . . . Highest-Rated Ally . | . . . . Total Orders . | . . . . Ally Attacks . | . . . . Total Damage . | . . . . Kills . | . . . . Allies Corrupted . | . . . . Allies Melted . | . . . . Intel | -11 -10 -10 -10 ------- Run | Yrd Mat Min Sub Robot Analysis Total . | . . . . Derelict Logs Recovered 3 | . . 2 1 Drone Launches . | . . . . Drone Recoveries . | . . . . Exploration | -11 -10 -10 -10 ------------- Run | Yrd Mat Min Sub Turns Passed 2989 | 88 1462 1240 199 Spaces Moved 2044 | 61 889 994 100 Core 4 | 4 . . . Treads . | . . . . Legs 2040 | 57 889 994 100 Wheels . | . . . . Hover . | . . . . Flight . | . . . . Fastest Speed 50 | 50 120 120 120 Average Speed 122 | 116 120 120 179 Slowest Speed 190 | 120 190 120 190 Overloaded Moves . | . . . . Propulsion Burnouts . | . . . . Robots Hopped . | . . . . Cave-ins Triggered . | . . . . Exploration Rate (%) 50 | 4 94 99 4 Regions Visited 3 Branch Regions 2 Pre-discovered Areas 1 | . . 1 . Known Exits Taken . | . . . . Unknown Exits Taken 3 | 1 1 1 . Scrap Searched 1 | . . 1 . Spaces Dug 4 | . . . 4 Terrain Destroyed 6 | . 2 . 4 Melee . | . . . . Projectile . | . . . . AOE 6 | . 2 . 4 Terrain Rammed . | . . . . Walls Destroyed . | . . . . Machines Disabled . | . . . . Actions | -11 -10 -10 -10 --------- Run | Yrd Mat Min Sub Total 2386 | 74 1157 1035 120 Wait 205 | . 164 34 7 Move 2041 | 60 888 993 100 Hop . | . . . . Pick Up 23 | 5 13 2 3 Fast Attach 10 | 7 2 . 1 Attach 4 | . 3 . 1 Detach 1 | 1 . . . Swap 9 | 1 8 . . Drop 18 | . 11 2 5 Fire 74 | . 67 4 3 Melee . | . . . . Ram . | . . . . Kick 1 | . 1 . . Crush . | . . . . Escape Stasis . | . . . . Rewire . | . . . . Trap . | . . . . Miscellaneous . | . . . . Route ------- -11/Scrapyard -10/Materials (discovered 5 exits: [*Mat x3] / *Min x2) -10/Mines (discovered 3 exits: [*Mat x2] / *Sub) -10/Subcaves History --------- Turn | Location | Event 18 | -11/Scrapyard | Discovered new exit (range 16) 89 | -11/Scrapyard | Entered Materials 287 | -10/Materials | Discovered new exit (range 13) 310 | -10/Materials | Build established: Mutant 378 | -10/Materials | Discovered new exit (range 15) 498 | -10/Materials | Discovered new exit (range 16) 661 | -10/Materials | Core integrity fell below 50% 883 | -10/Materials | Build established: Scavenger-Mutant 946 | -10/Materials | Repaired Sensor Array 974 | -10/Materials | Repaired Signal Interpreter 1001 | -10/Materials | Repaired Aluminum Leg 1228 | -10/Materials | Discovered new exit (range 7) 1494 | -10/Materials | Discovered new exit (range 12) 1551 | -10/Materials | Entered Mines 1596 | -10/Mines | Learned location of Storage (-7) 1757 | -10/Mines | Discovered new exit (range 8) 1993 | -10/Mines | Found a hidden stash of uninstalled traps 2010 | -10/Mines | Discovered new exit (range 12) 2111 | -10/Mines | Received a Rocket Launcher from a helpful Derelict 2238 | -10/Mines | Learned 2 Materials zone layouts 2287 | -10/Mines | Discovered new exit (range 6) 2791 | -10/Mines | Entered Subcaves 2912 | -10/Subcaves | Visited Clippyterm 2960 | -10/Subcaves | Learned Materials stockpile data 2971 | -10/Subcaves | Ambushed by swarm of Subdwellers 2971 | -10/Subcaves | Ambushed by Subdwellers from Twisted Machinery 2971 | -10/Subcaves | Ambushed by Subdwellers from Twisted Machinery 2971 | -10/Subcaves | Ambushed by Subdwellers from Twisted Machinery 2971 | -10/Subcaves | Ambushed by Subdwellers from Twisted Machinery 2971 | -10/Subcaves | Ambushed by Subdwellers from Twisted Machinery 2971 | -10/Subcaves | Ambushed by Subdwellers from Twisted Machinery 2981 | -10/Subcaves | Core integrity fell below 20% 2990 | -10/Subcaves | Destroyed self with Rocket Launcher Last Messages --------------- 02980_ VE-UCO(g) destroyed. 02980_ MM-R6M(g) destroyed. 02983_ 3C-V0A(R) affixes Scrap Shield Fragment to Scrap Shield. 02984_ UW-06Y(R) affixes Scrap Shield Fragment to Scrap Shield. 02984_ Aluminum Leg destroyed. 02985_ Subatomizers dissect the Targeting Computer. 02987_ YY-4R6(R) destroyed. 02987_ Critical hit (Destroy). 02987_ Scrap Shield destroyed. 02988_ 8G-E3X(R) affixes Scrap Shield Fragment to Scrap Shield. 02989_ G4-GEL(R) affixes Scrap Shield Fragment to Scrap Shield. 02989_ CR-5YG(g) destroyed. 02990_ Assault Rifle destroyed. 02990_ LG-X1U(R) destroyed. 02990_ G4-GEL(R) destroyed. Map ----- +----------------------------------------------------+ | ?????????????????????????????????????????????????? | | ?????????????????????????????????????????????????? | | ?????????????????????????????????????????????????? | | ?????????????????????????????????????????????????? | | ?????????????????????????????????????????????????? | | ?????????????????????????????????????????????????? | | ?????????????????????????????????????????????????? | | ?????????????????????????????????????????????????? | | ?????????????????????????????????????????????????? | | ?????????????????????????????????????????????????? | | ?????????????????????????????????????????????????? | | ?????????????????????????????????????????????????? | | ?????????????????????????????????????????????????? | | ?????????????????????????????????????????????????? | | ?????????????????????????????????????????????????? | | ??????????????????????????#######????????????????? | | ??????????????????????????#"""""#????????????????? | | ??????????????????????????#""X""#????????????????? | | ??????????????????????????#" "#????????????????? | | ??????????????????????????### ####??????########?# | | ???????????????????????????## ## ##????## ## | | ??????????????????????????## ###??# | | ?????????????????????????## ##### ! | | ????????????????????????## ## =! | | ??????????????????????### !! | | ?????????????????????##!!@ ## # ## ! ! # | | ??????????????????### ==* # ### ###### ### | | ??????????????????# # %R=### #?# # #???# ##?? | | ????????????????###![&%&##?# #?## ? ##??? | | ???????????????## %#!!RR #?## #??### ???? | | ???????????????# =%R[&& #??###????### # ##???? | | ???????????????# %[R= #????????????#######????? | | ???????????????## *R% #???????????????????????? | | ????????????????#;R !]## #???????????????????????? | | ????????????????# ;;; ?##???????????????????????? | | ????????????????# #??????????????????????????? | | ????????????????#######??????????????????????????? | | ?????????????????????????????????????????????????? | | ?????????????????????????????????????????????????? | | ?????????????????????????????????????????????????? | | ?????????????????????????????????????????????????? | | ?????????????????????????????????????????????????? | | ?????????????????????????????????????????????????? | | ?????????????????????????????????????????????????? | | ?????????????????????????????????????????????????? | | ?????????????????????????????????????????????????? | | ?????????????????????????????????????????????????? | | ?????????????????????????????????????????????????? | | ?????????????????????????????????????????????????? | | ?????????????????????????????????????????????????? | +----------------------------------------------------+ Best States ------------- Heat Dissipation 25 Energy Generation 10 Energy Capacity 250 Matter Stores 300 Matter Capacity 300 Sight Range 16 Robot Scan Range 14 Terrain Scan Density 10 Armor Coverage 800 Evasion (%) 55 Item Schematics ----------------- None Robot Schematics ------------------ None Fabricated ------------ Nothing Alien Tech Used ----------------- None Achievements -------------- None Challenges ------------ None Game ------ Seed ScrapBombardmentSheargun Manual? 0 Play Time 00:26:19 Cumulative 42.0 hours Start 2024.04.28 @ 22:56:05 End 2024.04.28 @ 23:21:58 Sessions 1 Manual Loads 0 Difficulty Rogue Special Mode None Game No. 37 Rogue 37 Adventurer 0 Explorer 0 Win Type - Total 0 Types 0/0/0/0/0/0/0/0/0 Lore% 19 Gallery% 28 Achievement% 19 Wizard Run 0 Options --------- Layout 2 ASCII 0 Keyboard 1 Movement Arrows Keybinds 0 Fullscreen 2 Font 24/Smallcaps Map View 50x44 Zoom Use 0% Tactical HUD 1 Map Filters NONE Filters NONE Steam 1 RUN: 64c5ad78-3be7-4c79-963e-e0b1de7ea0e3